Cogmind - Beta 16 @@@ ROGUE MODE // 2025.12.12 @ 09:42:55 Player: souux Result: Destroyed by G-47 Trooper with Particle Gun Performance ------------- Evolutions (0) 0 Regions Visited (2) 400 Robots Destroyed (29) 145 Value Destroyed (630) 630 Prototype IDs (2) 40 Alien Tech Used (0) 0 Bonus (0) 0 TOTAL SCORE: 1215 Bonus ------- None Cogmind --------- Core Integrity 0/250 Matter 196/300 Energy 250/250 System Corruption 0% Temperature Warm (126) Movement Treading (240) Ox1 Location -10/Mines Parts ------- > --- POWER (1) -------- Ion Engine > --- PROPULSION (2) --- Light Treads Light Treads > --- UTILITY (2) ------ High-capacity Storage Unit Light Armor Plating > --- WEAPON (2) ------- Autogun Autogun > --- INVENTORY (20) --- Ion Engine Light Nuclear Core Aluminum Leg Aluminum Leg Wheel Compact Wheel Cooling System Cooling System Huge Storage Unit Medium Matter Pod (100) Sensor Array Seismic Detector Seismic Detector Light Armor Plating Beam Cannon Beam Cannon Autogun Grenade Launcher Hammer Peak State ------------ > --- POWER ------------ Ion Engine > --- PROPULSION ------- Aluminum Leg Aluminum Leg > --- UTILITY ---------- Cooling System High-capacity Storage Unit > --- WEAPON ----------- Autogun Autogun > --- INVENTORY -------- Ion Engine Light Ion Engine Light Treads Light Treads Aluminum Leg Aluminum Leg Aluminum Leg Wheel Wheel Compact Wheel Compact Wheel Cooling System Cooling System Cooling System Huge Storage Unit Seismic Detector Seismic Detector Autogun Autogun [Rating: 12] Favorites ----------- Power Ion Engine Engine Ion Engine Propulsion Wheel Treads Light Treads Leg Aluminum Leg Wheel Wheel Utility High-capacity Storage Unit Device Seismic Detector Storage High-capacity Storage Unit Protection Light Armor Plating Weapon Autogun Energy Gun Small Laser Ballistic Gun Autogun Launcher Grenade Launcher Build | -11 -10 -10 ------- Run | Yrd Mat Min Slots Evolved . | . . . Power . | . . . Propulsion . | . . . Utility . | . . . Weapon . | . . . Parts Attached 28 | 9 18 1 Power 3 | 1 2 . Engine 3 | 1 2 . Core . | . . . Reactor . | . . . Propulsion 10 | 4 6 . Treads 2 | . 2 . Leg 4 | . 4 . Wheel 4 | 4 . . Hover . | . . . Flight . | . . . Utility 9 | 2 6 1 Device 5 | 1 3 1 Storage 3 | 1 2 . Processor . | . . . Hackware . | . . . Protection 1 | . 1 . Artifact . | . . . Weapon 6 | 2 4 . Energy Gun 2 | 2 . . Energy Cannon . | . . . Ballistic Gun 3 | . 3 . Ballistic Cannon . | . . . Launcher 1 | . 1 . Special Weapon . | . . . Impact Weapon . | . . . Slashing Weapon . | . . . Piercing Weapon . | . . . Special Melee Weapon . | . . . Unidentified Prototypes . | . . . Parts Lost . | . . . Power . | . . . Propulsion . | . . . Utility . | . . . Weapon . | . . . Highest Loss Streak . | . . . To Critical Strikes . | . . . Average Backups 16 | 4 17 19 Power 1 | . 1 2 Propulsion 7 | 2 7 5 Utility 5 | . 5 7 Weapon 2 | . 2 5 Tool/Special . | . . . Unused Backups 21 | . 8 13 Power 2 | . 1 1 Propulsion 6 | . 3 3 Utility 8 | . 3 5 Weapon 5 | . 1 4 Tool/Special . | . . . Average Slot Usage (%) 99 | . 99 100 Engine 13 | . 13 14 Treads 4 | . 4 2 Leg 7 | . 8 . Wheel 16 | . 15 25 Device 8 | . 9 1 Storage 14 | . 14 14 Protection 5 | . 4 12 Ballistic Gun 26 | . 27 15 Launcher 1 | . . 12 Peak Build Rating 12 | 7 12 11 Average Rating 10 | 5 10 10 On Entrance 5 | . 7 10 Avg Prop Armor Cover (%) 9 | . 9 . Naked Turns . | . . . Heaviest Build 54 | 13 54 54 Greatest Support 40 | 26 40 20 Greatest Overweight (x) 5 | . 5 2 Average Overweight (x) 2 | . 2 2 Largest Inventory Capacity 20 | 8 20 20 Average Capacity 18 | 7 19 20 Most Carried 20 | 8 20 20 Average Carried 16 | 5 17 19 Final Capacity 20 | 8 20 20 Final Carried 20 | 8 20 19 Class Distribution -------------------- 100% | Mutant Dominant Class ---------------- Mutant | -10/Materials Mutant | -10/Mines Resources | -11 -10 -10 ----------- Run | Yrd Mat Min Matter Collected 1276 | 290 946 40 Remotely . | . . . Salvage Created 1056 | 142 859 55 Parts 61 | 13 44 4 Haulers Intercepted . | . . . Recyclers Shooed 2 | . 1 1 Parts Field Recycled . | . . . Retrieved Matter . | . . . Parts Self-Destructed . | . . . Prevented . | . . . Parts Restored . | . . . Kills | -11 -10 -10 ------- Run | Yrd Mat Min Combat Hostiles Destroyed 17 | . 13 4 Guns 14 | . 13 1 AOE 3 | . . 3 Classes Destroyed 7 | 2 5 . Tunneler 4 | 4 . . Recycler 4 | 1 3 . Operator 1 | . 1 . Watcher 3 | . 3 . Swarmer 4 | . 1 3 Grunt 12 | . 11 1 Subdweller 1 | . 1 . Best Kill Streak 7 | 5 7 3 Combat Bots Only 3 | . 3 3 Max Kills in Single Turn 2 | 2 2 2 Gunslinging . | . . . Exploded 2 | . . 2 Melee . | . . . Uniques/NPCs Destroyed . | . . . Combat | -11 -10 -10 -------- Run | Yrd Mat Min Hostile Shots Fired 67 | . 51 16 Missed 15 | . 14 1 Hits 52 | . 37 15 Projectile 52 | . 37 15 Critical Strikes 1 | . . 1 Damage Taken 661 | . 466 195 Core 255 | . 216 39 Absorbed by Shields . | . . . Core Remaining (%) 100 | 100 . . Volleys Fired 78 | 11 57 10 Largest 2 | 2 2 2 Hottest 80 | 80 46 46 Shots Fired 154 | 22 114 18 Gun 152 | 22 114 16 Cannon . | . . . Launcher 2 | . . 2 Special . | . . . Kinetic 130 | . 114 16 Thermal 22 | 22 . . Explosive 2 | . . 2 Electromagnetic . | . . . Robot Hit Streak 13 | 10 13 10 Robot Miss Streak 3 | 2 3 3 Penetration Max . | . . . Secondary Targets . | . . . Shots Hit Robots 103 | 14 76 13 Core Hits 39 | 6 29 4 Critical Kills . | . . . Critical Parts Destroyed . | . . . Critical Strikes . | . . . Melee Attacks . | . . . Impact . | . . . Slashing . | . . . Piercing . | . . . Sneak Attacks . | . . . Combat Hostiles . | . . . Follow-up Attacks . | . . . Damage Inflicted 1731 | 146 1195 390 Guns 1532 | 146 1195 191 Cannons . | . . . Explosions 197 | . . 197 Melee . | . . . Ramming 2 | . . 2 Kinetic 1386 | . 1195 191 Thermal 146 | 146 . . Explosive 197 | . . 197 Electromagnetic . | . . . Impact . | . . . Slashing . | . . . Piercing . | . . . Highest Corruption . | . . . Average Corruption . | . . . Corruption Purged . | . . . Corruption Blocked . | . . . Overload Shots . | . . . Overflow Damage 10 | . . 10 Projectiles . | . . . Explosions 10 | . . 10 Melee . | . . . Knockbacks . | . . . Impact . | . . . Kinetic . | . . . Secondary . | . . . Self-Inflicted Damage 1 | . . 1 Shots . | . . . Rammed 1 | . . 1 Targets Rammed 1 | . . 1 Kicked . | . . . Crushed . | . . . Highest Temperature 198 | 198 63 117 Average Temperature 44 | 104 14 60 Received Heat Transfer 324 | . 201 123 Siege Activations . | . . . Martial Activations . | . . . Shielding Activations . | . . . Robots Disrupted . | . . . Combat Hostiles . | . . . Robots Corrupted . | . . . Combat Hostiles . | . . . Parts Fried . | . . . Impact Corruptions . | . . . Robots Melted . | . . . Combat Hostiles . | . . . Parts Melted 3 | 1 2 . Heat Transferred 325 | 325 . . Parts Sabotaged . | . . . Parts Stolen . | . . . Parts Stripped . | . . . Power Chain Reactions . | . . . Alert | -11 -10 -10 ------- Run | Yrd Mat Min Maximum Alert Level . | . . . Low Security (%) 100 | 100 100 100 Level 1 . | . . . Level 2 . | . . . Level 3 . | . . . Level 4 . | . . . Level 5 . | . . . High Security . | . . . Max Security . | . . . Peak Influence 126 | 15 126 89 Initial 6 | . . 6 Average 39 | 2 41 47 Influence Increases 595 | 25 467 103 Destroy 0b10 Robot/C 320 | . 240 80 Destroy 0b10 Robot/NC 60 | 25 35 . Destroy Leader 66 | . 56 10 Successful Hack 26 | . 26 . Destroy Structure 18 | . 5 13 Lose Combat Pursuer 105 | . 105 . Influence Decreases 576 | 25 451 100 Entered New Map 10 | . . 10 Time Decay 562 | 25 447 90 Purge Threat 4 | . 4 . Squads Dispatched 3 | . 3 . Investigation 2 | . 2 . Extermination . | . . . Reinforcement 1 | . 1 . Assault . | . . . Garrison . | . . . Intercept . | . . . Searches Triggered . | . . . Construction Impeded . | . . . Haulers Reinforced . | . . . Active Scanning Responses . | . . . Cargo Convoy Interrupts . | . . . Stealth | -11 -10 -10 --------- Run | Yrd Mat Min Distress Signals 2 | . 2 . Communications Jammed . | . . . Distress Signals . | . . . Times Spotted 29 | . 25 4 Peak Tracking Total 4 | . 4 2 Tactical Retreats 3 | . 3 . Traps | -11 -10 -10 ------- Run | Yrd Mat Min Traps Triggered 2 | . 2 . Indirectly . | . . . Trap Hack Attempts . | . . . Triggered . | . . . Disarmed . | . . . Reprogrammed . | . . . Reused . | . . . Traps Extracted . | . . . Installed . | . . . Triggered . | . . . Machines | -11 -10 -10 ---------- Run | Yrd Mat Min Machines Disabled 1 | . 1 . Max in Single Turn 1 | . 1 . Machines Repaired . | . . . Machines Dismantled . | . . . Machines Sabotaged . | . . . Overloaded Fab Kills . | . . . Hacking | -11 -10 -10 --------- Run | Yrd Mat Min Machines Accessed 8 | . 8 . Terminals 8 | . 8 . Fabricators . | . . . Repair Stations . | . . . Recycling Units . | . . . Scanalyzers . | . . . Garrison Access . | . . . Total Hacks 26 | . 26 . Successful 15 | . 15 . Failed 11 | . 11 . Catastrophic 1 | . 1 . Database Lockouts . | . . . Manual 20 | . 20 . Terminals 26 | . 26 . Fabricators . | . . . Repair Stations . | . . . Recycling Units . | . . . Scanalyzers . | . . . Garrison Access . | . . . Terminal Hacks 4 | . 4 . Prototype ID Bank 1 | . 1 . Unreport Threat 2 | . 2 . Locate Traps 1 | . 1 . Fabricator Hacks . | . . . Repair Station Hacks . | . . . Recycling Unit Hacks . | . . . Scanalyzer . | . . . Garrison Access Hacks . | . . . Unauthorized Hacks 11 | . 11 . Terminals 11 | . 11 . Botnet 5 | . 5 . Skim 6 | . 6 . Fabricators . | . . . Repair Stations . | . . . Recycling Units . | . . . Scanalyzers . | . . . Garrison Access . | . . . Data Cores Recovered . | . . . Used . | . . . Hacking Detections 8 | . 8 . Full Trace Events 1 | . 1 . Feedback Events . | . . . Feedback Blocked . | . . . Robot Schematics Acquired . | . . . Robots Built . | . . . Authchips . | . . . Time . | . . . Total Robot Build Rating . | . . . Part Schematics Acquired . | . . . Parts Built . | . . . Authchips . | . . . Time . | . . . Total Part Build Rating . | . . . Part Studies Acquired . | . . . Parts Repaired . | . . . Time . | . . . Parts Recycled . | . . . Recycled Matter . | . . . Retrieved Matter . | . . . Retrieved Components . | . . . Parts Scanalyzed . | . . . Part Schematics Acquired . | . . . Parts Damaged . | . . . Bothacking | -11 -10 -10 ------------ Run | Yrd Mat Min Used RIF Installer . | . . . Robots Hacked . | . . . Non-combat . | . . . Combat . | . . . Robot Hacks Applied . | . . . Relay Couplers Released . | . . . Fabnet Peak Effective % . | . . . Robots Rewired . | . . . Allies Hacked . | . . . Hacks Repelled . | . . . Allies | -11 -10 -10 -------- Run | Yrd Mat Min Total Allies . | . . . Largest Group . | . . . Highest-Rated Group . | . . . Highest-Rated Ally . | . . . Total Orders . | . . . Ally Attacks . | . . . Total Damage . | . . . Kills . | . . . Allies Corrupted . | . . . Allies Melted . | . . . Intel | -11 -10 -10 ------- Run | Yrd Mat Min Active Infowar (turns) 951 | 29 901 21 Sensors 21 | . . 21 Seismic 930 | 29 901 . Robot Analysis Total . | . . . Derelict Logs Recovered . | . . . Drone Launches . | . . . Drone Recoveries . | . . . Exploration | -11 -10 -10 ------------- Run | Yrd Mat Min Turns Passed 1964 | 117 1659 188 Spaces Moved 1103 | 71 892 140 Core 1 | 1 . . Treads 4 | . 4 . Legs 103 | . 103 . Wheels 995 | 70 785 140 Hover . | . . . Flight . | . . . Fastest Speed 50 | 50 80 110 Average Speed 127 | 85 133 110 Slowest Speed 260 | 90 260 110 Overloaded Moves . | . . . Propulsion Burnouts . | . . . Robots Hopped . | . . . Potential Cave-ins . | . . . Cave-ins Triggered . | . . . Exploration Rate (%) 42 | 3 99 26 Regions Visited 2 Branch Regions 1 Pre-discovered Areas . | . . . Known Exits Taken 1 | . 1 . Unknown Exits Taken 1 | 1 . . Scrap Searched 1 | . . 1 Spaces Dug 13 | . . 13 Terrain Destroyed 13 | . . 13 Melee . | . . . Projectile . | . . . AOE 13 | . . 13 Terrain Rammed . | . . . Walls Destroyed . | . . . Machines Disabled . | . . . Actions | -11 -10 -10 --------- Run | Yrd Mat Min Total 1522 | 101 1262 159 Wait 231 | 2 229 . Move 1101 | 70 891 140 Hop . | . . . Pick Up 37 | 8 28 1 Fast Attach 10 | 6 4 . Attach 1 | 1 . . Detach . | . . . Swap 38 | 2 31 5 Drop 25 | 1 22 2 Fire 78 | 11 57 10 Melee . | . . . Ram 1 | . . 1 Kick . | . . . Crush . | . . . Escape Stasis . | . . . Rewire . | . . . Trap . | . . . Miscellaneous . | . . . Route ------- -11/Scrapyard -10/Materials (discovered 6 exits: [*Mat x3] / *Min x2 / [*Sub]) -10/Mines History --------- Turn | Location | Event 27 | -11/Scrapyard | Discovered new exit (range 15) 118 | -11/Scrapyard | Entered Materials 179 | -10/Materials | Discovered new exit (range 16) 304 | -10/Materials | Build established: Mutant 571 | -10/Materials | Discovered new exit (range 6) 665 | -10/Materials | Core integrity fell below 50% 720 | -10/Materials | Discovered new exit (range 6) 818 | -10/Materials | Derelicts attacked the area 1093 | -10/Materials | Discovered new exit (range 16) 1375 | -10/Materials | Core integrity fell below 20% 1446 | -10/Materials | Discovered new exit (range 10) 1467 | -10/Materials | Identified exit to Mines 1520 | -10/Materials | Learned location of 3 exits from Materials 1534 | -10/Materials | Learned location of 1 exit from Storage 1540 | -10/Materials | Learned location of 1 exit from Recycling 1542 | -10/Materials | Learned location of 2 exits from Materials 1550 | -10/Materials | Learned Storage trap positions 1567 | -10/Materials | Learned location of 3 exits from Materials 1594 | -10/Materials | Learned Storage stockpile data 1777 | -10/Materials | Entered Mines 1850 | -10/Mines | Assembled infested the area 1855 | -10/Mines | Assisted by a Guerilla fighting off Assembled 1965 | -10/Mines | Destroyed by G-47 Trooper with Particle Gun Last Messages --------------- 01880_ U-05 Engineer lays Concrete. 01887_ U-05 Engineer builds a Wall. 01889_ U-05 Engineer lays Concrete. 01891_ U-05 Engineer builds a Wall. 01895_ U-05 Engineer lays Concrete. 01897_ U-05 Engineer builds a Wall. 01912_ Searching scrap... 01912_ Found Aluminum Leg. 01912_ Found Hammer. 01912_ Found Sensor Array. 01912_ Found Sml. Matter Pod. 01912_ Found 51 Matter. 01913_ Acquired 30 matter. 01915_ Dropped Aluminum Leg. 01915_ Acquired Sensor Array. 01918_ Acquired 10 matter. 01929_ Slammed into R-06 Scavenger. 01946_ Dropped Wheel. 01946_ G-34 Mercenary destroyed. 01957_ Critical hit (Burn: +37). Map ----- +----------------------------------------------------+ | ?????## #?????????????????????????????????? | | ?????# ###???????????????????????????????? | | ????## ###########?????????????????????? | | # ## #?????????????????????? | | #?????????????????????? | | ## ##### ??????????????????? | | ?????## ## ##????????????????????????????? | | ???????## ##?###?????????????????????????????? | | ??????## ##??????????????????????????????????? | | ??????# ##???????????????????????????????????? | | ??????# #?????????????????####???????????????? | | ??????# #????????????????## ##??????????????? | | ??????## ##??????????###??# #??????????????? | | ???????# ##???????## ##?# ##?????????????? | | ??????## ##??????# #??# ##????????????? | | ?????## ##????## #?## #????????????? | | ????## #???## #??# #????????????? | | ???## #??## #?## #????????????? | | ???# #?## #### #????????????? | | ???# #### ##### ##????????????? | | ???# ####### ##??# ####????#####????? | | ???## ##?#### ##### #######?? #????? | | ????## #### % =/#? """ #????? | | ?????## ## ! ##### ## """ #????? | | ??????## ###g### ##?#%!= """ #????? | | ???????# #########?#@### ###### #????? | | ???????## ##?????????# #???? #????? | | ????????## #??????????###### #????? #????? | | ?????????#####???????????###### #????? #????? | | ???????????????????????????????# ##??????####????? | | ????????????????????????????????##???????????????? | | ?????????????????????????????????????????????????? | | ?????????????????????????????????????????????????? | | | | | | | | | | | | | | | | | | | | | | | | | | | | | | | | | | | +----------------------------------------------------+ Best States ------------- Heat Dissipation 47 Energy Generation 10 Energy Capacity 250 Matter Stores 300 Matter Capacity 300 Sight Range 16 Robot Scan Range 14 Terrain Scan Density 10 Armor Coverage 150 Evasion (%) 44 Recoil Reduction 2 Item Schematics ----------------- None Robot Schematics ------------------ None Fabricated ------------ Nothing Repaired ---------- Nothing Studied --------- None Alien Tech Used ----------------- None Achievements -------------- None Challenges ------------ None Game ------ Seed ImprovedSeismicInitializer Manual? 0 Play Time 00:31:52 Cumulative 121.9 hours Start 2025.12.12 @ 09:08:23 End 2025.12.12 @ 09:42:55 Sessions 1 Manual Loads 0 Difficulty Rogue Special Mode None Game No. 98 Rogue 98 Adventurer 0 Explorer 0 Win Type - Total 2 Types 2/0/0/0/0/0/0/0/0/0 Lore% 42 Gallery% 46 Achievement% 38 Wizard Run 0 Options --------- Layout 2 ASCII 0 Keyboard 0 Movement Mouse Keybinds 0 Fullscreen 2 Font 24/Smallcaps Map View 50x44 Zoom Use 0% Tactical HUD 1 Map Filters NONE Filters NONE Steam 1 RUN: 97183561-9587-4363-b834-9b8a8201a64b